Workbook

Sheet Target
A2: Target
B3: Full Price | C3: Bulk Price | D3: Sale Price | E3: Average Price
A4: Twix | B4: 6.99 | C4: =SUM(B4)+2 -> 8.99 | D4: =-3.99+B4 -> 3 | E4: =AVERAGE(B4:D4) -> 6.326666667
A5: Skittles | B5: =SUM(B4) -> 6.99 | C5: =SUM(C4)+2 -> 10.99 | D5: =-3.99+B5 -> 3 | E5: =AVERAGE(B5:D5) -> 6.993333333
A6: Butterfingers | B6: 7.87 | C6: =SUM(B6)+2 -> 9.87 | D6: =-3.99+B6 -> 3.88 | E6: =AVERAGE(B6:D6) -> 7.206666667
A7: Snickers | B7: 8.75 | C7: =SUM(B7)+2 -> 10.75 | D7: =-3.99+B7 -> 4.76 | E7: =AVERAGE(B7:D7) -> 8.086666667
A8: Milkyway | B8: 6.89 | C8: =SUM(B8)+2 -> 8.89 | D8: =-3.99+B8 -> 2.9 | E8: =AVERAGE(B8:D8) -> 6.226666667

Sheet Kroger
A2: Kroger
B3: Full Price | C3: Bulk Price | D3: Sale Price | E3: Average Price
A4: Twix | B4: 5.99 | C4: =SUM(B4)+2 -> 7.99 | D4: =-3.99+B4 -> 2 | E4: =AVERAGE(B4:D4) -> 5.326666667
A5: Skittles | B5: 7.95 | C5: =SUM(C4)+2 -> 9.99 | D5: =-3.99+B5 -> 3.96 | E5: =AVERAGE(B5:D5) -> 7.3
A6: Butterfingers | B6: 9.87 | C6: =SUM(B6)+2 -> 11.87 | D6: =-3.99+B6 -> 5.88 | E6: =AVERAGE(B6:D6) -> 9.206666667
A7: Snickers | B7: 10.75 | C7: =SUM(B7)+2 -> 12.75 | D7: =-3.99+B7 -> 6.76 | E7: =AVERAGE(B7:D7) -> 10.08666667
A8: Milkyway | B8: 7.89 | C8: =SUM(B8)+2 -> 9.89 | D8: =-3.99+B8 -> 3.9 | E8: =AVERAGE(B8:D8) -> 7.226666667

Sheet Walmart
A2: Walmart
B3: Full Price | C3: Bulk Price | D3: Sale Price | E3: Average Price
A4: Twix | B4: 5.99 | C4: =SUM(B4)+2 -> 7.99 | D4: =-3.99+B4 -> 2 | E4: =AVERAGE(B4:D4) -> 5.326666667
A5: Skittles | B5: 7.95 | C5: =SUM(C4)+2 -> 9.99 | D5: =-3.99+B5 -> 3.96 | E5: =AVERAGE(B5:D5) -> 7.3
A6: Butterfingers | B6: 9.87 | C6: =SUM(B6)+2 -> 11.87 | D6: =-3.99+B6 -> 5.88 | E6: =AVERAGE(B6:D6) -> 9.206666667
A7: Snickers | B7: 10.75 | C7: =SUM(B7)+2 -> 12.75 | D7: =-3.99+B7 -> 6.76 | E7: =AVERAGE(B7:D7) -> 10.08666667
A8: Milkyway | B8: 7.89 | C8: =SUM(B8)+2 -> 9.89 | D8: =-3.99+B8 -> 3.9 | E8: =AVERAGE(B8:D8) -> 7.226666667

Sheet Comparison
A1: Comparing Candy Prices
B2: Regular Price | C2: Regular Price | D2: Regular Price | E2: Average of All
A3: Twix | B3: 5.99 | C3: 5.99 | D3: 6.99 | E3: =AVERAGE(B3:D3) -> 6.323333333
A4: Skittles | B4: 7.95 | C4: 7.95 | D4: 6.99 | E4: 7.63
A5: Butterfingers | B5: 9.87 | C5: 9.87 | D5: 7.87 | E5: 9.203333333
A6: Snickers | B6: 10.75 | C6: 10.75 | D6: 8.75 | E6: 10.08333333
A7: Milkyway | B7: 7.89 | C7: 7.89 | D7: 6.89 | E7: 7.556666667
A8: Average Prie | B8: =AVERAGE(B3:B7) -> 8.49 | C8: =AVERAGE(C3:C7) -> 8.49 | D8: =AVERAGE(D3:D7) -> 7.498 | E8: 8.159333333
B9: Walmart | C9: Kroger | D9: Target
